bitfinex/quotes_ETHUSD_20250802
["timestamp","ask_amount","ask_price","bid_price","bid_amount"]
[1754120519294,0.4874,3512.3,3512.0,0.1424]
[1754120519510,0.4874,3512.2,3512.1,8.18159893]
[1754120520604,0.9591,3512.2,3512.1,8.18159893]
[1754120521702,0.9591,3512.2,3511.8,0.002]
[1754120521996,0.1424,3512.0,3511.8,0.002]
[1754120522408,0.9591,3511.9,3511.8,0.002]
[1754120525866,2.6721,3511.9,3511.8,0.002]
[1754120528271,4.9474,3511.9,3511.8,0.002]
[1754120528885,5.4191,3511.9,3511.8,0.002]
[1754120529211,6.500751,3511.9,3511.8,0.002]
[1754120529981,6.029051,3511.9,3511.8,0.002]
[1754120530180,4.9474,3511.9,3511.8,0.002]
[1754120530985,5.4191,3511.9,3511.8,0.002]
[1754120532230,4.46,3511.9,3511.8,0.1444]
[1754120532931,4.9474,3511.9,3511.8,0.1444]
[1754120533348,4.46,3511.9,3511.8,0.002]
[1754120535048,0.001,3512.6,3511.8,1.32497989]
[1754120535336,4.46,3512.5,3512.1,8.32399893]
[1754120535510,4.46,3512.5,3512.1,8.76979893]
[1754120536618,0.1434,3512.6,3512.1,8.76979893]
[1754120536819,4.46,3512.4,3512.1,8.76979893]
[1754120537722,4.46,3512.6,3512.3,0.1424]
[1754120537910,4.46,3512.6,3512.5,8.18159893]
[1754120538105,4.46,3512.6,3512.5,8.32399893]
[1754120538514,4.46,3512.6,3512.5,8.76979893]
[1754120538715,4.46,3512.6,3512.5,9.20189893]
[1754120538946,0.001,3512.6,3512.5,10.12208882]
[1754120539259,4.46,3512.6,3512.5,10.12208882]
[1754120539466,0.001,3512.6,3512.5,10.12208882]
[1754120541951,0.001,3512.6,3512.5,9.68998882]
[1754120542141,0.001,3512.6,3512.5,9.24418882]
[1754120542339,0.001,3512.6,3512.5,10.11228882]
[1754120542805,0.001,3512.6,3512.5,9.68018882]
[1754120544800,0.001,3512.6,3512.5,9.24418882]
[1754120546192,0.469,3512.6,3512.5,1.06258989]
[1754120547012,0.9061,3512.6,3512.5,1.06258989]
[1754120547209,0.9061,3512.6,3512.5,0.1424]
[1754120547398,5.3641,3512.6,3512.5,0.1424]
[1754120547592,5.3641,3512.6,3512.4,0.1424]
[1754120547890,0.9051,3512.5,3512.4,0.1424]
[1754120548113,0.9051,3512.5,3511.9,7.82399893]
[1754120548308,0.9051,3512.5,3512.4,0.1424]
[1754120548702,0.468,3512.5,3512.4,0.1424]
[1754120550411,4.459,3512.6,3512.4,0.1424]
[1754120550609,4.459,3512.6,3512.5,11.18159893]
[1754120550610,0.001,3512.6,3512.5,11.18159893]
[1754120550819,4.458,3512.6,3512.5,11.61759893]
[1754120551005,0.001,3512.6,3512.5,11.18159893]
[1754120551737,0.001,3512.6,3512.5,11.61759893]
[1754120554290,0.001,3512.6,3512.5,4.21920989]
[1754120554484,0.001,3512.6,3512.5,3.8681]
[1754120554690,0.001,3512.6,3512.5,3.0]
[1754120555346,0.9061,3512.6,3512.5,3.0]
[1754120556541,1.0485,3512.6,3512.5,3.0]
[1754120556905,1.0485,3512.6,3512.1,3.1424]
[1754120557098,0.9051,3512.5,3512.1,3.1424]
[1754120557303,0.1434,3512.6,3512.1,0.1424]
[1754120557304,0.9051,3512.4,3512.1,0.1424]
[1754120557504,4.456,3512.3,3512.1,0.1424]
[1754120557712,0.9051,3512.2,3511.9,0.1424]
[1754120558149,0.9051,3512.1,3511.9,0.1424]
[1754120558646,0.468,3512.1,3511.9,0.1424]
[1754120558947,4.924,3512.3,3512.0,8.18159893]
[1754120559642,4.456,3512.2,3512.0,8.18159893]
[1754120560135,0.469,3512.6,3512.1,0.1424]
[1754120560334,4.456,3512.5,3512.3,8.18159893]
[1754120560733,0.468,3512.4,3512.1,0.1424]
[1754120560939,0.468,3512.3,3512.1,0.1424]
[1754120561371,0.9051,3512.3,3512.1,0.1424]
[1754120561528,0.468,3512.3,3512.1,0.1424]
[1754120561730,0.469,3512.3,3512.1,0.1424]
[1754120562131,0.001,3512.3,3512.1,0.1424]
[1754120562650,0.469,3512.3,3512.1,0.1424]
[1754120563542,0.001,3512.3,3512.1,0.1424]
[1754120563742,4.456,3512.3,3512.1,0.5784]
[1754120564421,0.001,3512.3,3512.1,0.5784]
[1754120564758,0.001,3512.3,3512.1,0.1424]
[1754120565315,0.469,3512.3,3512.1,0.1424]
[1754120566048,0.468,3512.2,3512.1,0.1424]
[1754120569514,0.001,3512.3,3512.1,0.1424]
[1754120569950,0.468,3512.2,3512.1,0.1424]
[1754120570162,0.001,3512.3,3512.1,0.1424]
[1754120571856,0.4859,3512.2,3512.1,0.1424]
[1754120572155,0.001,3512.3,3512.1,3.5799]
[1754120572350,0.001,3512.3,3512.1,3.5745]
[1754120572677,0.001,3512.3,3512.1,4.75570989]
[1754120572826,4.455,3512.3,3512.2,0.4375]
[1754120573164,0.001,3512.3,3512.2,1.012]
[1754120573540,0.001,3512.3,3512.2,1.89610518]
[1754120573848,0.001,3512.3,3512.2,4.05159699]
[1754120574962,0.001,3512.3,3512.2,4.02312481]
[1754120580951,0.001,3512.3,3512.2,3.59102481]
[1754120581245,0.001,3512.3,3512.2,4.02312481]
[1754120581953,0.001,3512.3,3512.2,3.59102481]
[1754120582169,0.001,3512.3,3512.2,3.15352481]
[1754120582354,0.9445,3512.3,3512.2,9.17963193]
[1754120582743,0.001,3512.3,3512.2,9.03723193]
[1754120582937,0.001,3512.3,3512.2,9.61713193]
[1754120583288,0.001,3512.3,3512.2,13.63163193]
[1754120583436,0.001,3512.3,3512.2,15.45558611]
[1754120584086,0.001,3512.3,3512.2,11.00358611]
[1754120584389,0.4869,3512.3,3512.2,11.00358611]
[1754120585185,0.4869,3512.3,3512.2,9.17963193]
[1754120585390,0.9445,3512.3,3512.2,11.32399893]
[1754120586394,0.9445,3512.3,3512.2,3.1424]
[1754120587314,0.001,3512.3,3512.2,3.1424]
[1754120587704,0.001,3512.3,3512.2,3.5799]
[1754120587912,0.001,3512.3,3512.2,4.80705989]
[1754120592321,0.001,3512.3,3512.2,5.24455989]
[1754120592644,0.001,3512.3,3512.2,5.29295989]
[1754120593177,0.4869,3512.3,3512.2,5.29295989]
[1754120594324,0.9445,3512.3,3512.2,3.6283]
[1754120594537,0.9445,3512.3,3512.2,3.1424]
[1754120595112,0.4869,3512.3,3512.2,3.1424]
[1754120596460,0.001,3512.3,3512.2,7.5924]
[1754120596753,0.001,3512.3,3512.2,10.02567889]
[1754120597063,0.4869,3512.3,3512.2,10.02567889]
[1754120597671,0.001,3512.3,3512.2,6.44527889]
[1754120598229,0.001,3512.3,3512.2,5.57567889]
[1754120598428,0.4869,3512.3,3512.2,12.17967793]
[1754120599072,0.9445,3512.3,3512.2,0.998079]
[1754120599248,0.9445,3512.3,3512.2,3.1424]
[1754120600086,0.9445,3512.3,3512.2,0.1424]
[1754120602961,0.001,3512.3,3512.2,0.1424]
[1754120603167,0.486,3512.3,3512.2,8.32399893]
[1754120603957,0.001,3512.3,3512.2,0.1424]
[1754120604168,0.9144,3512.3,3512.1,0.1424]
[1754120604366,0.9134,3512.2,3512.1,0.1424]
[1754120604585,0.9134,3512.2,3512.0,0.1424]
[1754120604750,0.9134,3512.1,3512.0,0.1424]
[1754120609364,0.485,3512.1,3512.0,0.1424]
[1754120610491,0.001,3512.3,3512.0,1.99249989]
[1754120610692,0.001,3512.3,3512.2,8.32399893]
[1754120610991,0.001,3512.3,3512.2,0.1424]
[1754120611194,0.486,3512.3,3512.2,0.1424]
[1754120611981,0.001,3512.3,3512.2,0.1424]
[1754120612183,0.001,3512.3,3512.2,1.06625989]
[1754120613189,0.486,3512.3,3512.2,1.06625989]
[1754120614098,0.486,3512.3,3512.2,1.92595989]
[1754120614099,0.001,3512.3,3512.2,1.92595989]
[1754120614296,0.001,3512.3,3512.2,1.95443207]
[1754120614478,0.001,3512.3,3512.2,1.92595989]
[1754120615069,0.001,3512.3,3512.2,1.49385989]
[1754120617002,0.001,3512.3,3512.2,1.97885989]
[1754120617516,0.001,3512.3,3512.2,2.41095989]
[1754120618169,0.001,3512.3,3512.2,2.00733207]
[1754120618366,0.001,3512.3,3512.2,2.43943207]
[1754120619071,0.001,3512.3,3512.2,2.41095989]
[1754120622793,0.001,3512.7,3512.2,2.41095989]
[1754120622794,0.001,3512.7,3512.2,5.52885989]
[1754120622994,0.485,3513.8,3513.5,8.18159893]
[1754120623174,0.485,3513.8,3513.1,3.0]
[1754120623175,0.485,3513.8,3513.7,8.32399893]
[1754120624178,0.485,3514.3,3513.7,11.32399893]
[1754120624378,0.485,3514.3,3513.8,3.1424]
[1754120624811,0.485,3514.2,3513.8,3.1424]
[1754120625187,0.4284,3514.3,3513.8,3.6274]
[1754120625489,0.1,3514.4,3513.8,3.6274]
[1754120625899,0.60020941,3513.9,3513.8,3.6274]
[1754120626392,0.11520941,3513.9,3513.8,2.25269989]
[1754120626578,0.60020941,3513.9,3513.8,11.80899893]
[1754120626780,1.02860941,3513.9,3513.8,0.485]
[1754120626980,1.02860941,3513.9,3513.6,3.0]
[1754120627294,0.9134,3513.8,3513.6,3.0]
[1754120627493,0.11520941,3513.9,3513.6,3.0]
[1754120627789,0.9134,3513.7,3513.6,3.0]
[1754120632404,0.9134,3513.7,3513.6,4.20369789]
[1754120632609,0.9134,3513.7,3513.6,3.0]
[1754120633723,0.9134,3513.7,3513.5,3.0]
[1754120633887,0.911,3513.6,3513.5,3.0]
[1754120635422,0.11620941,3513.9,3513.5,3.0]
[1754120635596,0.911,3513.8,3513.7,8.18159893]
[1754120636504,0.4712,3513.8,3513.7,8.18159893]
[1754120636902,0.4712,3513.8,3513.7,8.32399893]
[1754120637487,0.11620941,3513.9,3513.7,8.32399893]
[1754120637843,0.11620941,3513.9,3513.7,9.45639882]
[1754120638125,0.11620941,3513.9,3513.8,3.02845921]
[1754120638288,0.11620941,3513.9,3513.8,3.456]
[1754120639301,0.11620941,3513.9,3513.8,3.0]
[1754120639823,0.11620941,3513.9,3513.8,7.44]
[1754120639989,0.11620941,3513.9,3513.8,9.26556988]
[1754120640191,0.11620941,3513.9,3513.8,10.15366988]
[1754120640618,0.11620941,3513.9,3513.8,9.72156988]
[1754120641330,0.11620941,3513.9,3513.8,9.26556988]
[1754120642033,0.11620941,3513.9,3513.8,9.72156988]
[1754120642333,0.11620941,3513.9,3513.8,10.15366988]
[1754120643330,0.11620941,3513.9,3513.8,9.72156988]
[1754120643529,0.11620941,3513.9,3513.8,9.26556988]
[1754120643727,1.02720941,3513.9,3513.8,17.44716881]
[1754120644063,0.58740941,3513.9,3513.8,17.44716881]
[1754120644409,0.11620941,3513.9,3513.8,17.44716881]
[1754120645027,0.11620941,3513.9,3513.8,17.44616881]
[1754120645228,0.11620941,3513.9,3513.8,17.90216881]
[1754120645430,0.58740941,3513.9,3513.8,17.44616881]
[1754120646908,0.11620941,3513.9,3513.8,13.60556881]
[1754120647831,0.11620941,3513.9,3513.8,13.14956881]
[1754120648039,0.10120941,3513.9,3513.8,13.14956881]
[1754120649722,0.10120941,3513.9,3513.8,13.60556881]
[1754120651401,0.10120941,3513.9,3513.8,13.14956881]
[1754120651606,0.10120941,3513.9,3513.8,13.60556881]
[1754120652042,0.10120941,3513.9,3513.8,14.03766881]
[1754120652743,0.10120941,3513.9,3513.8,13.60556881]
[1754120653546,0.10120941,3513.9,3513.8,14.03766881]
[1754120654432,0.10120941,3513.9,3513.8,13.60556881]
[1754120655852,0.10120941,3513.9,3513.8,13.14956881]
[1754120656038,0.57240941,3513.9,3513.8,13.14956881]
[1754120656351,0.57240941,3513.9,3513.8,17.58656881]
[1754120656719,0.57240941,3513.9,3513.8,4.96796988]
[1754120657054,0.57240941,3513.9,3513.8,15.76099893]
[1754120657055,1.01220941,3513.9,3513.8,15.76099893]
[1754120658152,0.57240941,3513.9,3513.8,15.76099893]
[1754120662431,0.10120941,3513.9,3513.8,15.76099893]
[1754120665433,0.57740941,3513.9,3513.8,15.76099893]
[1754120666177,0.10120941,3513.9,3513.8,15.76099893]
[1754120666471,0.10120941,3513.9,3513.8,18.24533882]
[1754120667237,0.10120941,3513.9,3513.8,18.72153882]
[1754120668963,0.10120941,3513.9,3513.8,18.28943882]
[1754120670270,0.10120941,3513.9,3513.8,17.82753882]
[1754120670475,0.10120941,3513.9,3513.8,21.56746061]
[1754120670767,0.10120941,3513.9,3513.8,21.13536061]
[1754120670973,0.10120941,3513.9,3513.8,21.56746061]
[1754120671778,0.10120941,3513.9,3513.8,18.28943882]
[1754120672576,0.10120941,3513.9,3513.8,17.82753882]
[1754120673175,0.10120941,3513.9,3513.8,13.39053882]
[1754120673355,0.10120941,3513.9,3513.8,5.20893989]
[1754120673356,0.57740941,3513.9,3513.8,5.20893989]
[1754120673671,0.57740941,3513.9,3513.8,15.75799893]
[1754120675571,1.05030941,3513.9,3513.8,15.75799893]
[1754120677077,0.57740941,3513.9,3513.8,15.75799893]
[1754120677583,1.05030941,3513.9,3513.8,15.75799893]
[1754120680305,0.10120941,3513.9,3513.8,15.75799893]
[1754120680598,0.10120941,3513.9,3513.8,17.33379882]
[1754120680890,0.1,3514.4,3513.9,3.55]
[1754120681083,0.5762,3514.4,3514.3,11.18159893]
[1754120681282,0.5762,3514.4,3514.3,15.61359893]
[1754120682262,1.0491,3514.4,3514.3,3.0]
[1754120682476,1.0491,3514.4,3514.3,7.432]
[1754120683276,1.0491,3514.4,3514.3,8.99335989]
[1754120684220,1.0491,3514.4,3514.3,4.56135989]
[1754120684508,1.0491,3514.4,3514.3,7.432]
[1754120685197,1.0491,3514.4,3514.3,3.0]
[1754120686358,0.5762,3514.4,3514.3,3.0]
[1754120686763,1.0491,3514.4,3514.3,3.0]
[1754120687959,1.0491,3514.4,3513.4,0.857268]
[1754120688163,0.9491,3514.3,3513.5,12.61259893]
[1754120688502,0.9491,3514.2,3513.6,3.0]
[1754120688794,0.1,3514.4,3513.6,3.0]
[1754120688795,0.9491,3514.1,3513.6,3.0]
[1754120689000,0.1,3514.4,3513.5,3.0]
[1754120689196,0.9491,3514.0,3513.4,3.002]
[1754120689400,0.9491,3513.9,3513.4,0.002]
[1754120689768,0.9491,3513.8,3513.4,0.002]
[1754120690191,0.9491,3513.7,3513.4,0.002]
[1754120690669,0.9491,3513.6,3513.4,0.002]
[1754120691064,0.9491,3513.5,3513.4,0.002]
[1754120691565,0.9299,3513.5,3513.4,0.002]
[1754120692897,1.0723,3513.5,3513.4,0.002]
[1754120696496,1.6223,3513.5,3513.4,0.002]
[1754120696811,1.78453,3513.5,3513.4,0.002]
[1754120700101,5.66553,3513.5,3513.4,0.002]
[1754120701590,0.79503,3513.5,3513.4,0.002]
[1754120701791,5.0638,3513.5,3513.4,0.002]
[1754120702492,0.4904,3513.5,3513.4,0.002]
[1754120703079,0.9299,3513.5,3513.4,0.002]
[1754120703568,1.4799,3513.5,3513.4,0.002]
[1754120703770,2.25653,3513.5,3513.4,0.002]
[1754120706498,3.96953,3513.5,3513.4,0.002]
[1754120707383,4.11399759,3513.5,3513.4,0.002]
[1754120707584,3.96953,3513.5,3513.4,0.002]
[1754120708876,6.96953,3513.5,3513.4,0.002]
[1754120709298,7.10974947,3513.5,3513.4,0.002]
[1754120709513,14.11974947,3513.5,3513.4,0.002]
[1754120709716,22.3013484,3513.5,3513.4,0.002]
[1754120713078,14.11974947,3513.5,3513.4,0.002]
[1754120713881,20.97953,3513.5,3513.4,0.002]
[1754120714114,25.40953,3513.5,3513.4,0.002]
[1754120716590,20.54003,3513.5,3513.4,0.002]
[1754120716793,24.97003,3513.5,3513.4,0.002]
[1754120717516,21.56243,3513.5,3513.4,0.002]
[1754120717678,24.56243,3513.5,3513.4,0.002]
[1754120718114,25.11243,3513.5,3513.4,0.002]
[1754120719511,18.11243,3513.5,3513.4,0.002]
[1754120721685,17.62203,3513.5,3513.4,0.002]
[1754120722120,17.62103,3513.5,3513.4,0.002]
[1754120722417,18.07443,3513.5,3513.4,0.002]
[1754120723498,18.52813,3513.5,3513.4,0.002]
[1754120726235,13.64543,3513.5,3513.4,0.002]
[1754120726433,17.62103,3513.5,3513.4,0.002]
[1754120726932,14.62103,3513.5,3513.4,0.002]
[1754120727638,15.07443,3513.5,3513.4,0.002]
[1754120727810,15.07343,3513.5,3513.4,0.002]
[1754120728011,14.62003,3513.5,3513.4,0.002]
[1754120728221,13.8434,3513.5,3513.4,0.002]
[1754120728435,13.8434,3513.5,3513.4,0.4475]
[1754120729637,13.8434,3513.5,3513.4,0.002]
[1754120730450,8.8654,3513.5,3513.4,0.002]
[1754120730653,13.2934,3513.5,3513.4,0.8796]
[1754120730836,8.8654,3513.5,3513.4,0.8796]
[1754120731041,13.2934,3513.5,3513.4,0.8796]
[1754120731537,13.2934,3513.5,3513.4,0.4475]
[1754120732668,13.2934,3513.5,3513.4,0.8796]
[1754120733454,8.8654,3513.5,3513.4,0.4341]
[1754120733755,13.2924,3513.5,3513.4,0.8796]
[1754120734524,13.2924,3513.5,3513.4,0.4475]
[1754120736667,13.2924,3513.5,3513.4,0.002]
[1754120736960,13.7458,3513.5,3513.4,0.002]
[1754120738356,13.2924,3513.5,3513.4,0.002]
[1754120740765,13.7458,3513.5,3513.4,0.002]
[1754120741965,16.16945,3513.5,3513.4,0.002]
[1754120743942,19.16945,3513.5,3513.4,0.002]
[1754120744470,12.15945,3513.5,3513.4,0.002]
[1754120749792,19.16945,3513.5,3513.4,0.002]
[1754120752479,18.75635,3513.5,3513.4,0.002]
[1754120752848,18.25935,3513.5,3513.4,0.002]
[1754120753053,16.8394,3513.5,3513.4,0.002]
[1754120753578,16.2894,3513.5,3513.4,0.002]
[1754120753759,16.2894,3513.5,3513.4,0.9043]
[1754120753760,8.8654,3513.5,3513.4,0.9043]
[1754120754098,13.2884,3513.5,3513.4,0.002]
[1754120755185,13.2884,3513.5,3513.4,0.4722]
[1754120757000,13.2884,3513.5,3513.4,0.002]
[1754120757368,15.71064,3513.5,3513.4,0.002]
[1754120757561,16.16124,3513.5,3513.4,0.002]
[1754120757763,15.71064,3513.5,3513.4,0.002]
[1754120758286,16.16124,3513.5,3513.4,0.002]
[1754120758990,19.16124,3513.5,3513.4,0.002]
[1754120759794,18.71064,3513.5,3513.4,0.002]
[1754120759962,16.8384,3513.5,3513.4,0.002]
[1754120760162,16.8374,3513.5,3513.4,0.002]
[1754120760587,12.4154,3513.5,3513.4,0.002]
[1754120760874,16.8374,3513.5,3513.4,0.002]
[1754120761319,17.782,3513.5,3513.4,0.002]
[1754120761522,19.5602,3513.5,3513.4,0.002]
[1754120762985,18.6156,3513.5,3513.4,0.002]
[1754120764077,14.1936,3513.5,3513.4,0.002]
[1754120764277,19.1086,3513.5,3513.4,0.002]
[1754120764490,19.5592,3513.5,3513.4,0.002]
[1754120767490,18.6146,3513.5,3513.4,0.002]
[1754120767687,12.4154,3513.5,3513.4,0.002]
[1754120768039,13.8354,3513.5,3513.4,0.4722]
[1754120768190,13.2854,3513.5,3513.4,0.4722]
[1754120768390,13.2854,3513.5,3513.4,0.9043]
[1754120769314,13.2854,3513.5,3513.4,0.4722]
[1754120770395,13.2854,3513.5,3513.4,0.002]
[1754120770796,13.2854,3513.5,3513.4,0.4722]
[1754120771781,8.8654,3513.5,3513.4,0.4341]
[1754120772040,6.2744,3513.5,3513.4,1.76586989]
[1754120772338,1.8554,3513.5,3513.4,1.76586989]
[1754120772541,6.132,3513.5,3513.4,1.76586989]
[1754120773596,4.419,3513.5,3513.4,1.76586989]
[1754120776323,4.418,3513.5,3513.4,1.76586989]
[1754120777599,4.418,3513.5,3513.4,0.4722]
[1754120777808,4.418,3513.5,3513.4,0.002]
[1754120778015,4.912,3513.5,3513.4,0.002]
[1754120778413,4.418,3513.5,3513.4,0.002]
[1754120780124,4.912,3513.5,3513.4,0.002]
[1754120780727,5.0544,3513.5,3513.4,0.002]
[1754120780936,4.5604,3513.5,3513.4,0.002]
[1754120781442,4.5604,3513.5,3513.4,0.4722]
[1754120781601,4.418,3513.5,3513.4,0.4722]
[1754120783049,4.418,3513.5,3513.4,1.38078989]
[1754120783259,4.416,3513.5,3513.4,1.81288989]
[1754120785146,4.416,3513.5,3513.4,0.91058989]
[1754120785448,4.416,3513.5,3513.4,0.002]
[1754120785753,4.416,3513.5,3513.4,0.8818]
[1754120789564,4.416,3513.5,3513.4,0.4497]
[1754120789762,4.416,3513.5,3513.4,0.002]
[1754120790815,4.8917,3513.5,3513.4,0.002]
[1754120791011,4.416,3513.5,3513.4,0.002]
[1754120791249,4.8917,3513.5,3513.4,0.002]
[1754120792236,4.416,3513.5,3513.4,0.002]
[1754120792556,5.3304,3513.5,3513.4,0.002]
[1754120792853,4.8917,3513.5,3513.4,0.002]
[1754120793256,4.416,3513.5,3513.4,0.002]
[1754120793556,4.416,3513.5,3513.4,1.28229989]
[1754120794155,4.414,3513.5,3513.4,1.28229989]
[1754120794647,0.1424,3513.8,3513.4,0.83459989]
[1754120794857,4.414,3513.7,3513.6,8.18159893]
[1754120795214,4.414,3513.7,3513.4,0.97699989]
[1754120795215,4.414,3513.7,3513.4,0.1444]
[1754120795417,0.4757,3513.6,3513.4,0.1444]
[1754120795615,4.414,3513.7,3513.4,1.10731999]
[1754120796318,0.4757,3513.6,3513.4,0.1444]
[1754120796627,0.4757,3513.5,3513.4,0.1444]
[1754120796830,4.8897,3513.7,3513.4,0.1444]
[1754120798266,4.8897,3513.7,3513.6,8.18159893]
[1754120798618,4.414,3513.7,3513.6,8.18159893]
[1754120798818,4.414,3513.7,3513.6,9.05896882]
[1754120799155,0.001,3513.9,3513.6,9.05896882]
[1754120799453,0.001,3513.9,3513.7,0.8798]
[1754120799614,0.001,3513.9,3513.8,7.5554]
[1754120799814,0.001,3513.9,3513.8,8.4352]
[1754120800063,0.001,3513.9,3513.8,10.18461688]
[1754120800521,0.001,3513.9,3513.8,20.10792409]
[1754120801828,0.1,3514.4,3513.9,3.0]
[1754120802046,0.1,3514.4,3514.3,10.06570721]
[1754120802639,0.1,3514.4,3514.3,10.92090621]
[1754120802840,0.1,3514.4,3514.3,12.54217683]
[1754120804767,0.5757,3514.4,3514.3,0.1424]
[1754120806612,0.1424,3515.0,3514.4,3.0]
[1754120806754,0.1424,3515.0,3514.3,5.4332]
[1754120806755,0.1424,3515.0,3514.9,9.92330721]
[1754120807090,0.4757,3515.5,3514.9,10.06570721]
[1754120807288,0.4757,3515.5,3515.0,1.44757072]
[1754120807454,0.1424,3515.8,3514.9,0.85508]
[1754120807786,5.3244,3515.7,3515.3,0.1424]
[1754120807937,0.9144,3515.6,3515.3,0.1424]
[1754120808337,0.9144,3515.5,3515.3,0.1424]
[1754120808540,0.4757,3515.4,3515.3,0.1424]
[1754120808856,0.4757,3515.8,3515.3,0.1424]
[1754120809064,0.4757,3515.7,3515.4,9.92330721]
[1754120809242,0.4757,3515.6,3515.4,9.92330721]
[1754120809646,0.4757,3515.5,3515.4,9.92330721]
[1754120809866,0.9144,3515.5,3515.4,9.92330721]
[1754120810365,0.9144,3515.5,3515.4,10.77836221]
[1754120810964,0.4757,3515.5,3515.4,10.77836221]
[1754120811583,0.4634,3515.7,3515.4,10.77836221]
[1754120811888,0.4634,3515.6,3515.4,10.77836221]
[1754120812272,0.1424,3515.9,3515.4,10.77836221]
[1754120812581,0.1424,3515.9,3515.5,0.8721]
[1754120812785,0.4634,3515.8,3515.4,11.87043843]
[1754120813087,0.8936,3515.8,3515.4,11.87043843]
[1754120813563,0.4302,3515.7,3515.4,11.87043843]
[1754120813766,0.1424,3515.9,3515.4,11.87043843]
[1754120814081,0.1424,3515.9,3515.4,10.77836221]
[1754120814082,0.8936,3515.6,3515.4,10.77836221]
[1754120814281,0.4634,3515.5,3515.4,10.77836221]
[1754120814958,0.1424,3515.9,3515.4,10.77836221]
[1754120815163,4.8714,3515.8,3515.4,10.77836221]
[1754120815665,4.8714,3515.8,3515.4,11.21836221]
[1754120815859,4.408,3515.8,3515.4,10.77836221]
[1754120816067,0.8936,3515.7,3515.4,10.77836221]
[1754120816390,1.438,3515.7,3514.5,9.92330721]
[1754120816551,2.748,3515.6,3515.0,0.1424]
[1754120816753,0.1424,3515.4,3514.9,0.1424]
[1754120816965,4.8704,3515.3,3514.9,0.1424]
[1754120817172,4.407,3515.2,3515.0,9.92330721]
[1754120817370,0.8936,3515.1,3514.9,0.1424]
[1754120817663,0.8936,3515.1,3514.9,1.23448722]
[1754120817873,0.4634,3515.0,3514.9,1.23448722]
[1754120818593,0.1424,3515.4,3514.9,1.23448722]
[1754120818799,0.1424,3515.4,3515.1,9.92330721]
[1754120818951,4.407,3515.3,3515.1,11.21181315]
[1754120819157,0.4302,3516.0,3515.1,11.21181315]
[1754120819468,0.1424,3515.8,3515.2,0.1424]
[1754120819858,0.4634,3515.7,3515.2,0.1424]
[1754120820058,0.4634,3515.6,3515.2,0.1424]
[1754120820261,0.4634,3515.6,3515.3,1.17942132]
[1754120820460,4.407,3515.5,3515.3,1.17942132]
[1754120820655,0.1424,3515.8,3515.3,1.17942132]
[1754120820861,4.406,3515.7,3515.5,9.92330721]
[1754120821086,0.4634,3515.6,3515.5,9.92330721]
[1754120821592,1.712,3516.0,3515.5,9.92330721]
[1754120821799,4.406,3515.6,3515.5,9.92330721]
[1754120822872,4.406,3515.7,3515.5,9.92330721]
[1754120823698,4.406,3515.7,3515.5,10.39310721]
[1754120824196,0.1424,3516.0,3515.5,9.92330721]
[1754120824397,6.2594,3516.1,3515.6,0.6122]
[1754120824640,6.6896,3516.1,3515.6,0.1424]
[1754120824839,0.8936,3516.0,3515.6,0.1424]
[1754120825040,6.92846,3516.1,3515.6,0.1424]
[1754120825241,0.8936,3516.0,3515.6,0.1424]
[1754120825411,6.2594,3516.1,3515.6,0.1424]
[1754120825610,0.8936,3515.9,3515.6,0.1424]
[1754120826043,0.001,3516.2,3515.8,0.1424]
[1754120826342,0.001,3516.2,3515.8,10.06570721]
[1754120826541,0.001,3516.2,3515.8,11.16325793]
[1754120826741,0.001,3516.2,3516.0,0.1424]
[1754120827147,0.001,3516.2,3516.1,0.1424]
[1754120827359,0.001,3516.2,3516.1,1.0522]
[1754120829171,6.19923341,3519.7,3516.1,1.0522]
[1754120829172,0.11380442,3517.7,3516.1,1.906997]
[1754120829317,0.11380442,3517.7,3516.2,7.23723042]
[1754120829518,0.11380442,3517.7,3517.6,9.92330721]
[1754120829745,0.11380442,3517.7,3517.6,10.06570721]
[1754120830253,0.11380442,3517.7,3517.6,0.996893]
[1754120830555,0.11380442,3517.7,3517.6,1.466693]
[1754120830757,0.11380442,3517.7,3517.6,0.996893]
[1754120830974,0.11380442,3517.7,3517.6,1.466693]
[1754120831359,0.11380442,3517.7,3517.6,2.17989302]
[1754120831523,0.11380442,3517.7,3517.6,3.08969302]
[1754120831994,0.11380442,3517.7,3517.6,6.08969302]
[1754120832163,0.11380442,3517.7,3517.6,10.49269302]
[1754120832336,0.02327,3517.9,3517.7,3.0]
[1754120832536,0.02327,3517.9,3517.8,18.81797651]
[1754120832738,0.02327,3517.9,3517.8,19.72777651]
[1754120833082,0.02327,3517.9,3517.8,24.48088971]
[1754120833282,0.02327,3517.9,3517.8,4.3492693]
[1754120833565,0.02327,3517.9,3517.8,3.4698]
[1754120833861,0.02327,3517.9,3517.8,8.3118]
[1754120834489,0.02327,3517.9,3517.8,7.402]
[1754120835575,0.02327,3517.9,3516.9,14.67642041]
[1754120835576,0.91687,3517.9,3517.7,4.402]
[1754120835788,0.4634,3517.8,3517.6,4.8654]
[1754120835998,0.4634,3517.7,3517.6,0.4634]
[1754120836194,0.4634,3517.7,3517.5,4.402]
[1754120836364,0.8936,3517.7,3517.5,5.3922]
[1754120836544,0.02327,3517.9,3517.5,5.3922]
[1754120837144,0.8936,3517.8,3517.5,5.3922]
[1754120837549,0.4634,3517.7,3517.5,0.55]